fUSD/lending_fUSD_20260507
["ID","MTS","AMOUNT","RATE_DAILY","PERIOD"]
[421775903,1778139038000,-552.93113016,0.00011993,2]
[421775909,1778139040000,-26403.79226853,0.00011993,2]
[421775908,1778139040000,-949.38353732,0.00011993,2]
[421775906,1778139040000,-1750.91422189,0.00011993,2]
[421775910,1778139040000,-380.52932165,0.00011993,2]
[421775907,1778139040000,-4992.61308658,0.00011993,2]
[421775938,1778139041000,-152516.97604634,0.00011993,2]
[421775916,1778139041000,-2510.73356464,0.00011993,2]
[421775915,1778139041000,-644.38,0.00011993,2]
[421775914,1778139041000,-591.07158026,0.00011993,2]
[421775913,1778139041000,-42293.39808523,0.00011993,2]
[421775912,1778139041000,-1284.13000002,0.00011993,2]
[421775911,1778139041000,-2917.5460326,0.00011993,2]
[421776055,1778139043000,-500.0,0.00011992,2]
[421776056,1778139043000,-500.0,0.00011992,2]
[421776057,1778139043000,-1119.16261767,0.00011993,2]
[421776059,1778139043000,-10382.28291694,0.00011993,2]
[421776060,1778139043000,-648.92043422,0.00011993,2]
[421776058,1778139043000,-9337.82413837,0.00011993,2]
[421776085,1778139046000,-12171.84662956,0.00011993,2]
[421776088,1778139046000,-8879.59617801,0.00011993,2]
[421776066,1778139046000,-8023.21061686,0.00011993,2]
[421776065,1778139046000,-492.98298303,0.00011993,2]
[421776064,1778139046000,-364.30194756,0.00011993,2]
[421776063,1778139046000,-7019.88673891,0.00011993,2]
[421776091,1778139047000,-511.63701206,0.00011993,2]
[421776202,1778139048000,152.0,0.00012511,7]
[421776203,1778139070000,-10000.01,0.00011993,2]
[421776204,1778139192000,-6000000.0,0.00042448,30]
[421776205,1778139199000,-16000000.0,0.00042448,30]
[421776206,1778139203000,-16000000.0,0.00042448,30]
[421776207,1778139214000,-16000000.0,0.00042448,30]
[421776209,1778139221000,-355.95,0.00042448,120]
[421776220,1778139221000,-162.14780381,0.00042448,120]
[421776212,1778139221000,-253.22407944,0.00042448,120]
[421776213,1778139221000,-180.42201146,0.00042448,120]
[421776215,1778139221000,-1607.6640625,0.00042448,120]
[421776217,1778139221000,-168.35796363,0.00042448,120]
[421776216,1778139221000,-274.68848632,0.00042448,120]
[421776214,1778139221000,-255.283878,0.00042448,120]
[421776221,1778139221000,-157.39526935,0.00042448,60]
[421776218,1778139221000,-168.36203535,0.00042448,120]
[421776219,1778139221000,-537.81056843,0.00042448,120]
[421776208,1778139221000,-1051.47,0.00042448,120]
[421776222,1778139221000,-152.17088269,0.00042448,60]
[421776210,1778139221000,-207.48386214,0.00042448,120]
[421776223,1778139221000,-326.03836639,0.00042448,120]
[421776225,1778139221000,-3376.20518042,0.00042448,60]
[421776237,1778139221000,-193.27848455,0.00042448,91]
[421776236,1778139221000,-671.19246212,0.00042448,90]
[421776235,1778139221000,-279.1363819,0.00042448,120]
[421776234,1778139221000,-195.04,0.00042448,120]
[421776233,1778139221000,-999.999999,0.00042448,120]
[421776231,1778139221000,-179.0,0.00042448,120]
[421776211,1778139221000,-190.06573711,0.00042448,120]
[421776230,1778139221000,-179.82,0.00042448,60]
[421776229,1778139221000,-305.66,0.00042448,120]
[421776228,1778139221000,-3866.847005,0.00042448,60]
[421776227,1778139221000,-226.0,0.00042448,120]
[421776226,1778139221000,-256.98410522,0.00042448,60]
[421776224,1778139221000,-350.2,0.00042448,120]
[421776232,1778139221000,-1143.25022201,0.00042448,120]
[421776250,1778139222000,-156.43409384,0.00042448,120]
[421776254,1778139222000,-9416.07922193,0.00042448,120]
[421776252,1778139222000,-107386.0,0.00042448,120]
[421776251,1778139222000,-393.696307,0.00042448,120]
[421776249,1778139222000,-313.29106692,0.00042448,120]
[421776246,1778139222000,-327.31898789,0.00042448,60]
[421776247,1778139222000,-156.74575703,0.00042448,120]
[421776248,1778139222000,-1026.93852536,0.00042448,120]
[421776243,1778139222000,-166.65410464,0.00042448,120]
[421776242,1778139222000,-191.73509358,0.00042448,120]
[421776244,1778139222000,-191.21632846,0.00042448,90]
[421776253,1778139222000,-450.02570497,0.00042448,120]
[421776241,1778139222000,-2338.34405591,0.00042448,120]
[421776239,1778139222000,-222.5830939,0.00042448,120]
[421776240,1778139222000,-228.06014714,0.00042448,120]
[421776238,1778139222000,-282.11259839,0.00042448,60]
[421776245,1778139222000,-366.62420932,0.00042448,120]
[421776255,1778139222000,-100380.77,0.00042448,120]
[421776256,1778139222000,-10135.66980153,0.00042448,90]
[421776270,1778139222000,-5000.0,0.00042448,120]
[421776276,1778139222000,-5000.0,0.00042448,120]
[421776275,1778139222000,-5000.0,0.00042448,120]
[421776274,1778139222000,-5000.0,0.00042448,120]
[421776273,1778139222000,-5000.0,0.00042448,120]
[421776272,1778139222000,-5000.0,0.00042448,120]
[421776271,1778139222000,-5000.0,0.00042448,120]
[421776269,1778139222000,-57751.28122747,0.00042448,60]
[421776257,1778139222000,-37445.17638294,0.00042448,61]
[421776268,1778139222000,-1578.13933765,0.00042448,90]
[421776266,1778139222000,-164.07082093,0.00042448,120]
[421776265,1778139222000,-500.0,0.00042448,120]
[421776264,1778139222000,-1241.17,0.00042448,120]
[421776261,1778139222000,-51921.93811564,0.00042448,60]
[421776263,1778139222000,-199.0,0.00042448,120]
[421776262,1778139222000,-228.40985889,0.00042448,120]
[421776260,1778139222000,-23576.86873992,0.00042448,60]
[421776258,1778139222000,-175.46650144,0.00042448,120]
[421776259,1778139222000,-1500.0,0.00042448,120]
[421776267,1778139222000,-35209.35727766,0.00042448,60]
[421776287,1778139223000,-5000.0,0.00042448,120]
[421776286,1778139223000,-5000.0,0.00042448,120]
[421776288,1778139223000,-5000.0,0.00042448,120]
[421776285,1778139223000,-5000.0,0.00042448,120]
[421776291,1778139223000,-1332.0,0.00042448,120]
[421776293,1778139223000,-5000.0,0.00042448,120]
[421776289,1778139223000,-5000.0,0.00042448,120]
[421776284,1778139223000,-5000.0,0.00042448,120]
[421776290,1778139223000,-5000.0,0.00042448,120]
[421776282,1778139223000,-5000.0,0.00042448,120]
[421776280,1778139223000,-993161.97091615,0.00042448,90]
[421776281,1778139223000,-4000.0,0.00042448,120]
[421776278,1778139223000,-45569.52605336,0.00042448,90]
[421776277,1778139223000,-1000.0,0.00042448,120]
[421776279,1778139223000,-7934375.37112727,0.00042448,60]
[421776292,1778139223000,-5000.0,0.00042448,120]
[421776283,1778139223000,-5000.0,0.00042448,120]
[421776294,1778139223000,-5000.0,0.00042448,120]
[421776295,1778139223000,-5000.0,0.00042448,120]
[421776310,1778139223000,-5517.18592227,0.00042448,120]
[421776313,1778139223000,-193.47394072,0.00042448,120]
[421776312,1778139223000,-172.49566109,0.00042448,120]
[421776311,1778139223000,-1174.40940461,0.00042448,120]
[421776309,1778139223000,-712.77512363,0.00042448,120]
[421776308,1778139223000,-152.24774772,0.00042448,120]
[421776315,1778139223000,-929.27191116,0.00042448,120]
[421776307,1778139223000,-5285.1737392,0.00042448,120]
[421776305,1778139223000,-180.69791604,0.00042448,60]
[421776306,1778139223000,-179.26712657,0.00042448,120]
[421776304,1778139223000,-169.09266037,0.00042448,120]
[421776301,1778139223000,-2313.44,0.00042448,120]
[421776302,1778139223000,-202.12482605,0.00042448,120]
[421776314,1778139223000,-367.39117736,0.00042448,120]
[421776300,1778139223000,-2496.11,0.00042448,60]
[421776299,1778139223000,-5000.0,0.00042448,120]
[421776298,1778139223000,-5000.0,0.00042448,120]
[421776296,1778139223000,-5000.0,0.00042448,120]
[421776303,1778139223000,-283.14,0.00042448,120]
[421776297,1778139223000,-5000.0,0.00042448,120]
[421776330,1778139224000,-170.5817082,0.00042448,120]
[421776327,1778139224000,-239.44350186,0.00042448,60]
[421776341,1778139224000,-1095.48,0.00042448,120]
[421776329,1778139224000,-314.77,0.00042448,120]
[421776331,1778139224000,-181.0,0.00042448,120]
[421776332,1778139224000,-1000.0,0.00042448,120]
[421776328,1778139224000,-17727.95172778,0.00042448,120]
[421776325,1778139224000,-1214.03,0.00042448,120]
[421776316,1778139224000,-153.41886608,0.00042448,120]
[421776326,1778139224000,-356.7,0.00042448,120]
[421776324,1778139224000,-275.93638218,0.00042448,120]
[421776322,1778139224000,-511.30865344,0.00042448,120]
[421776319,1778139224000,-678.87366564,0.00042448,120]
[421776321,1778139224000,-982.83227609,0.00042448,120]
[421776320,1778139224000,-10719.60134943,0.00042448,90]
[421776318,1778139224000,-539.07058991,0.00042448,120]
[421776317,1778139224000,-160.18991357,0.00042448,120]
[421776333,1778139224000,-1000.0,0.00042448,120]
[421776323,1778139224000,-1123.89116819,0.00042448,120]
[421776334,1778139224000,-1000.0,0.00042448,120]
[421776344,1778139224000,-1273.26701592,0.00042448,120]
[421776336,1778139224000,-1000.0,0.00042448,120]
[421776353,1778139224000,-865.24397742,0.00042448,120]
[421776355,1778139224000,-1184.0,0.00042448,120]
[421776352,1778139224000,-504.0,0.00042448,120]
[421776354,1778139224000,-14000.0,0.00042448,120]
[421776351,1778139224000,-6348.30501378,0.00042448,120]
[421776350,1778139224000,-334.92607462,0.00042448,120]
[421776349,1778139224000,-165.67323826,0.00042448,120]
[421776335,1778139224000,-1000.0,0.00042448,120]
[421776348,1778139224000,-287.72277295,0.00042448,120]
[421776345,1778139224000,-2414.52756384,0.00042448,120]
[421776346,1778139224000,-160.42517194,0.00042448,120]
[421776343,1778139224000,-102907.59553687,0.00042448,120]
[421776340,1778139224000,-1000.0,0.00042448,120]
[421776342,1778139224000,-1568.32943375,0.00042448,120]
[421776339,1778139224000,-1000.0,0.00042448,120]
[421776338,1778139224000,-1000.0,0.00042448,120]
[421776337,1778139224000,-1000.0,0.00042448,120]
[421776347,1778139224000,-1620.60688167,0.00042448,60]
[421776367,1778139225000,-42246.52286338,0.00042448,120]
[421776365,1778139225000,-2000.0,0.00042448,60]
[421776364,1778139225000,-2000.0,0.00042448,60]
[421776371,1778139225000,-14571.70014582,0.00042448,120]
[421776368,1778139225000,-178490.51136081,0.00042448,120]
[421776370,1778139225000,-281.67792249,0.00042448,120]
[421776361,1778139225000,-1060937.60219876,0.00042448,60]
[421776366,1778139225000,-245.86,0.00042448,120]
[421776363,1778139225000,-1000000.0,0.00042448,65]
[421776360,1778139225000,-1190.24629527,0.00042448,120]
[421776357,1778139225000,-458.31539098,0.00042448,120]
[421776358,1778139225000,-7968.70748179,0.00042448,120]
[421776359,1778139225000,-3430.0,0.00042448,120]
[421776356,1778139225000,-2579.91876117,0.00042448,60]
[421776369,1778139225000,-35374.67870193,0.00042448,120]
[421776362,1778139225000,-1000000.0,0.00042448,65]
[421776373,1778139225000,-6618.3933861,0.00042448,120]
[421776377,1778139225000,-14000.0,0.00042448,120]
[421776374,1778139225000,-10000.0,0.00042448,120]
[421776390,1778139225000,-853.91,0.00042448,120]
[421776388,1778139225000,-7915.21152775,0.00042448,60]
[421776389,1778139225000,-22000.0,0.00042448,120]
[421776385,1778139225000,-729.254971,0.00042448,120]
[421776387,1778139225000,-6280.226671,0.00042448,120]
[421776384,1778139225000,-26238.70942233,0.00042448,60]
[421776386,1778139225000,-2000.0,0.00042448,120]
[421776380,1778139225000,-952.91,0.00042448,120]
[421776375,1778139225000,-12000.0,0.00042448,120]
[421776383,1778139225000,-162.2917751,0.00042448,120]
[421776382,1778139225000,-13379.89690723,0.00042448,120]
[421776379,1778139225000,-287.19478435,0.00042448,120]
[421776378,1778139225000,-12329.09148577,0.00042448,120]
[421776391,1778139225000,-200.0,0.00042448,120]
[421776376,1778139225000,-234729.53,0.00042448,120]
[421776372,1778139225000,-517995.57763757,0.00042448,120]
[421776381,1778139225000,-250.0,0.00042448,120]
[421776406,1778139226000,-449.39,0.00042448,120]
[421776404,1778139226000,-311.87,0.00042448,120]
[421776405,1778139226000,-741.2582339,0.00042448,120]
[421776403,1778139226000,-1244.85,0.00042448,120]
[421776400,1778139226000,-426.0,0.00042448,120]
[421776401,1778139226000,-17369.31281413,0.00042448,120]
[421776399,1778139226000,-213.0,0.00042448,120]
[421776396,1778139226000,-1337.47833585,0.00042448,120]
[421776397,1778139226000,-191.66661127,0.00042448,120]
[421776398,1778139226000,-384.4,0.00042448,120]
[421776395,1778139226000,-285.67,0.00042448,120]
[421776394,1778139226000,-202.96127809,0.00042448,120]
[421776392,1778139226000,-500.0,0.00042448,65]
[421776393,1778139226000,-1356.0,0.00042448,120]
[421776407,1778139226000,-7450.0,0.00042448,120]
[421776402,1778139226000,-254.12529401,0.00042448,60]
[421776409,1778139226000,-556.0,0.00042448,120]
[421776410,1778139226000,-15628.46,0.00042448,120]
[421776427,1778139226000,-179.12465135,0.00042448,120]
[421776426,1778139226000,-217.67754475,0.00042448,120]
[421776408,1778139226000,-234.7458367,0.00042448,120]
[421776425,1778139226000,-178.00635119,0.00042448,120]
[421776422,1778139226000,-160.31821197,0.00042448,120]
[421776424,1778139226000,-484.81766207,0.00042448,120]
[421776423,1778139226000,-868.07165795,0.00042448,120]
[421776420,1778139226000,-265.19947157,0.00042448,120]
[421776418,1778139226000,-376.7739385,0.00042448,120]
[421776421,1778139226000,-159.4243394,0.00042448,120]
[421776417,1778139226000,-452.53538757,0.00042448,120]
[421776415,1778139226000,-302.03,0.00042448,120]
[421776414,1778139226000,-266.0,0.00042448,120]
[421776416,1778139226000,-179.11034693,0.00042448,120]
[421776412,1778139226000,-282.6741228,0.00042448,120]
[421776413,1778139226000,-257.90861158,0.00042448,120]
[421776411,1778139226000,-168.65,0.00042448,60]
[421776419,1778139226000,-544.26320638,0.00042448,120]
[421776436,1778139227000,-221.78166476,0.00042448,120]
[421776439,1778139227000,-221.78166476,0.00042448,120]
[421776441,1778139227000,-221.78166476,0.00042448,120]
[421776440,1778139227000,-221.78166476,0.00042448,120]
[421776438,1778139227000,-221.78166476,0.00042448,120]
[421776437,1778139227000,-221.78166476,0.00042448,120]
[421776442,1778139227000,-221.78166476,0.00042448,120]
[421776433,1778139227000,-221.78166476,0.00042448,120]
[421776432,1778139227000,-221.78166476,0.00042448,120]
[421776434,1778139227000,-221.78166476,0.00042448,120]
[421776431,1778139227000,-221.78166476,0.00042448,120]
[421776429,1778139227000,-221.78166476,0.00042448,120]
[421776430,1778139227000,-221.78166476,0.00042448,120]
[421776428,1778139227000,-221.78166476,0.00042448,120]
[421776435,1778139227000,-221.78166476,0.00042448,120]
[421776443,1778139227000,-62870.99178617,0.00042448,120]
[421776447,1778139227000,-223.52079673,0.00042448,120]
[421776445,1778139227000,-160.17902509,0.00042448,120]
[421776444,1778139227000,-1184.54676494,0.00042448,60]
[421776459,1778139227000,-223.52079673,0.00042448,120]
[421776458,1778139227000,-223.52079673,0.00042448,120]
[421776457,1778139227000,-223.52079673,0.00042448,120]
[421776456,1778139227000,-223.52079673,0.00042448,120]
[421776455,1778139227000,-223.52079673,0.00042448,120]
[421776454,1778139227000,-223.52079673,0.00042448,120]
[421776460,1778139227000,-223.52079673,0.00042448,120]
[421776450,1778139227000,-223.52079673,0.00042448,120]
[421776452,1778139227000,-223.52079673,0.00042448,120]
[421776451,1778139227000,-223.52079673,0.00042448,120]
[421776449,1778139227000,-223.52079673,0.00042448,120]
[421776448,1778139227000,-223.52079673,0.00042448,120]
[421776446,1778139227000,-3517.74978692,0.00042448,120]
[421776453,1778139227000,-223.52079673,0.00042448,120]
[421776472,1778139228000,-443.56332953,0.00042448,120]
[421776470,1778139228000,-443.56332953,0.00042448,120]
[421776473,1778139228000,-443.56332953,0.00042448,120]
[421776471,1778139228000,-443.56332953,0.00042448,120]
[421776468,1778139228000,-443.56332953,0.00042448,120]
[421776469,1778139228000,-443.56332953,0.00042448,120]
[421776465,1778139228000,-443.56332953,0.00042448,120]
[421776466,1778139228000,-443.56332953,0.00042448,120]
[421776463,1778139228000,-182.28,0.00042448,120]
[421776464,1778139228000,-804.45,0.00042448,120]
[421776462,1778139228000,-1548.02785597,0.00042448,120]
[421776461,1778139228000,-223.52079673,0.00042448,120]
[421776467,1778139228000,-443.56332953,0.00042448,120]
[421776474,1778139228000,-443.56332953,0.00042448,120]
[421776475,1778139228000,-443.56332953,0.00042448,120]
[421776477,1778139228000,-443.56332953,0.00042448,120]
[421776476,1778139228000,-443.56332953,0.00042448,120]
[421776489,1778139228000,-443.56332953,0.00042448,120]
[421776490,1778139228000,-443.56332953,0.00042448,120]
[421776488,1778139228000,-443.56332953,0.00042448,120]
[421776485,1778139228000,-443.56332953,0.00042448,120]
[421776486,1778139228000,-443.56332953,0.00042448,120]
[421776487,1778139228000,-443.56332953,0.00042448,120]
[421776482,1778139228000,-443.56332953,0.00042448,120]
[421776483,1778139228000,-443.56332953,0.00042448,120]
[421776481,1778139228000,-443.56332953,0.00042448,120]
[421776480,1778139228000,-443.56332953,0.00042448,120]
[421776478,1778139228000,-443.56332953,0.00042448,120]
[421776479,1778139228000,-443.56332953,0.00042448,120]
[421776484,1778139228000,-443.56332953,0.00042448,120]
[421776501,1778139229000,-193.25635324,0.00042448,120]
[421776506,1778139229000,-30065.239549,0.00042448,120]
[421776505,1778139229000,-201.1,0.00042448,120]
[421776504,1778139229000,-339.46,0.00042448,120]
[421776503,1778139229000,-267.98,0.00042448,120]
[421776500,1778139229000,-364.94055804,0.00042448,120]
[421776502,1778139229000,-1225.14,0.00042448,120]
[421776493,1778139229000,-443.56332953,0.00042448,120]
[421776498,1778139229000,-512942.84412916,0.00042448,120]
[421776496,1778139229000,-1102.0,0.00042448,120]
[421776497,1778139229000,-221.78166475,0.00042448,120]
[421776495,1778139229000,-221.78166476,0.00042448,120]
[421776507,1778139229000,-446.38649282,0.00042448,120]
[421776492,1778139229000,-443.56332953,0.00042448,120]
[421776491,1778139229000,-443.56332953,0.00042448,120]
[421776499,1778139229000,-391.0109944,0.00042448,120]
[421776508,1778139229000,-10427.51644852,0.00042448,120]
[421776494,1778139229000,-2741.22032634,0.00042448,60]
[421776509,1778139229000,-199.66903,0.00042448,120]
[421776527,1778139229000,-1035.0671,0.00042448,120]
[421776525,1778139229000,-1035.0671,0.00042448,120]
[421776526,1778139229000,-1035.0671,0.00042448,120]
[421776523,1778139229000,-60000.0,0.00042448,60]
[421776524,1778139229000,-400.0,0.00042448,120]
[421776522,1778139229000,-1224.71606711,0.00042448,120]
[421776520,1778139229000,-3369.33331669,0.00042448,120]
[421776511,1778139229000,-1684.0,0.00042448,120]
[421776521,1778139229000,-10075.67401017,0.00042448,120]
[421776518,1778139229000,-156.98,0.00042448,120]
[421776516,1778139229000,-800.0,0.00042448,120]
[421776517,1778139229000,-43244.85,0.00042448,120]
[421776515,1778139229000,-189.31789547,0.00042448,120]
[421776514,1778139229000,-603.84052786,0.00042448,120]
[421776513,1778139229000,-257.43576355,0.00042448,120]
[421776512,1778139229000,-4187.08380304,0.00042448,120]
[421776510,1778139229000,-12558.41672154,0.00042448,120]
[421776519,1778139229000,-333.36407092,0.00042448,120]
[421776528,1778139230000,-1035.0671,0.00042448,120]
[421776530,1778139230000,-1035.0671,0.00042448,120]
[421776531,1778139230000,-1035.0671,0.00042448,120]
[421776532,1778139230000,2358.62919574,0.00042448,60]
[421776529,1778139230000,-1035.0671,0.00042448,120]
[421776533,1778139231000,159.02096027,0.00016438,30]
[421776534,1778139231000,159.02096027,0.00016438,30]
[421776547,1778139450000,-2074.72030611,0.00011793,2]
[421776546,1778139450000,-300.0,0.00011792,2]
[421776544,1778139450000,-162.501,0.00011753,2]
[421776545,1778139450000,-300.0,0.00011792,2]
[421776542,1778139450000,-185.49069389,0.00011653,2]
[421776543,1778139450000,-1367.228,0.00011753,2]
[421776539,1778139450000,-200.0,0.00011446,2]
[421776540,1778139450000,-160.06,0.00011518,2]
[421776541,1778139450000,-250.0,0.00011635,2]
[421776548,1778139451000,-5000.0,0.00011793,2]
[421776549,1778139452000,-1486.18030777,0.00011793,2]
[421776551,1778139452000,-193.54907352,0.00011892,2]
[421776552,1778139452000,-500.0,0.00011892,2]
[421776553,1778139452000,-500.0,0.00011892,2]
[421776554,1778139452000,-310.79065259,0.00011892,2]
[421776556,1778139452000,-313.13213916,0.00011892,2]
[421776555,1778139452000,-454.24218778,0.00011892,2]
[421776550,1778139452000,-1242.10563918,0.00011793,2]
[421776557,1778139452000,-60.84933594,0.00011892,2]
[421776561,1778139452000,-500.0,0.00011892,2]
[421776560,1778139452000,-500.0,0.00011892,2]
[421776559,1778139452000,-500.0,0.00011892,2]
[421776564,1778139452000,-257.0,0.00011892,2]
[421776563,1778139452000,-1200.0,0.00011892,2]
[421776565,1778139452000,-1185.50924749,0.00011893,2]
[421776566,1778139452000,-1314.49075251,0.00011893,2]
[421776567,1778139452000,-3685.50924749,0.00011893,2]
[421776558,1778139452000,-501.01378853,0.00011892,2]
[421776562,1778139452000,-295.62762804,0.00011892,2]
[421776568,1778139453000,-1957.26883918,0.00011893,2]
[421776571,1778139453000,-5000.0,0.00011893,2]
[421776570,1778139453000,-5000.0,0.00011893,2]
[421776569,1778139453000,-3042.73116082,0.00011893,2]
[421776573,1778139454000,-5000.0,0.00011893,2]
[421776572,1778139454000,-5000.0,0.00011893,2]
[421776576,1778139455000,-5000.0,0.00011893,2]
[421776575,1778139455000,-5000.0,0.00011893,2]
[421776574,1778139455000,-5000.0,0.00011893,2]
[421776579,1778139456000,-5000.0,0.00011893,2]
[421776578,1778139456000,-5000.0,0.00011893,2]
[421776577,1778139456000,-5000.0,0.00011893,2]
[421776582,1778139457000,-5000.0,0.00011893,2]
[421776581,1778139457000,-5000.0,0.00011893,2]
[421776580,1778139457000,-5000.0,0.00011893,2]
[421776583,1778139458000,-5000.0,0.00011893,2]
[421776585,1778139458000,-5000.0,0.00011893,2]
[421776584,1778139458000,-5000.0,0.00011893,2]
[421776587,1778139459000,-5000.0,0.00011893,2]
[421776586,1778139459000,-5000.0,0.00011893,2]
[421776590,1778139460000,-5000.0,0.00011893,2]
[421776589,1778139460000,-5000.0,0.00011893,2]
[421776588,1778139460000,-5000.0,0.00011893,2]
[421776591,1778139461000,-5000.0,0.00011893,2]
[421776593,1778139461000,-5000.0,0.00011893,2]
[421776592,1778139461000,-5000.0,0.00011893,2]
[421776595,1778139462000,-5000.0,0.00011893,2]
[421776594,1778139462000,-5000.0,0.00011893,2]
[421776598,1778139463000,-5000.0,0.00011893,2]
[421776597,1778139463000,-5000.0,0.00011893,2]
[421776596,1778139463000,-5000.0,0.00011893,2]
[421776601,1778139464000,-5000.0,0.00011893,2]
[421776600,1778139464000,-5000.0,0.00011893,2]
[421776599,1778139464000,-5000.0,0.00011893,2]
[421776603,1778139465000,-5000.0,0.00011893,2]
[421776602,1778139465000,-5000.0,0.00011893,2]
[421776606,1778139466000,-5000.0,0.00011893,2]
[421776605,1778139466000,-5000.0,0.00011893,2]
[421776604,1778139466000,-5000.0,0.00011893,2]
[421776607,1778139467000,-5000.0,0.00011893,2]
[421776609,1778139467000,-5000.0,0.00011893,2]
[421776608,1778139467000,-5000.0,0.00011893,2]
[421776611,1778139468000,-5000.0,0.00011893,2]
[421776610,1778139468000,-5000.0,0.00011893,2]
[421776614,1778139469000,-2500.0,0.00011793,2]
[421776613,1778139469000,-5000.0,0.00011893,2]
[421776612,1778139469000,-5000.0,0.00011893,2]
[421776617,1778139470000,-5000.0,0.00011893,2]
[421776616,1778139470000,-5000.0,0.00011893,2]
[421776615,1778139470000,-2500.0,0.00011893,2]
[421776620,1778139471000,-5000.0,0.00011893,2]
[421776619,1778139471000,-5000.0,0.00011893,2]
[421776618,1778139471000,-5000.0,0.00011893,2]
[421776622,1778139472000,-5000.0,0.00011893,2]
[421776621,1778139472000,-5000.0,0.00011893,2]
[421776625,1778139473000,-5000.0,0.00011893,2]
[421776624,1778139473000,-5000.0,0.00011893,2]
[421776623,1778139473000,-5000.0,0.00011893,2]
[421776626,1778139474000,-5000.0,0.00011893,2]
[421776627,1778139474000,-5000.0,0.00011893,2]
[421776628,1778139474000,-5000.0,0.00011893,2]
[421776630,1778139475000,-580.13037397,0.00011793,2]
[421776631,1778139475000,-4419.86962603,0.00011893,2]
[421776629,1778139475000,-5000.0,0.00011893,2]
[421776635,1778139476000,-5000.0,0.00011893,2]
[421776634,1778139476000,-5000.0,0.00011893,2]
[421776633,1778139476000,-5000.0,0.00011893,2]
[421776637,1778139477000,-5000.0,0.00011893,2]
[421776636,1778139477000,-5000.0,0.00011893,2]
[421776640,1778139478000,-5000.0,0.00011893,2]
[421776639,1778139478000,-5000.0,0.00011893,2]
[421776638,1778139478000,-5000.0,0.00011893,2]
[421776642,1778139479000,-5000.0,0.00011893,2]
[421776641,1778139479000,-5000.0,0.00011893,2]
[421776643,1778139480000,-5000.0,0.00011893,2]
[421776645,1778139480000,-5000.0,0.00011893,2]
[421776644,1778139480000,-5000.0,0.00011893,2]
[421776647,1778139481000,-4807.40776795,0.00011893,2]
[421776646,1778139481000,-192.59223205,0.00011833,2]
[421776648,1778139481000,-5000.0,0.00011893,2]
[421776651,1778139482000,-5000.0,0.00011893,2]
[421776650,1778139482000,-5000.0,0.00011893,2]
[421776649,1778139482000,-5000.0,0.00011893,2]
[421776652,1778139483000,-5000.0,0.00011893,2]
[421776653,1778139484000,-5000.0,0.00011893,2]
[421776654,1778139484000,-5000.0,0.00011893,2]
[421776655,1778139485000,-5000.0,0.00011893,2]
[421776657,1778139486000,-5000.0,0.00011893,2]
[421776656,1778139486000,-5000.0,0.00011893,2]
[421776660,1778139487000,-5000.0,0.00011893,2]
[421776659,1778139487000,-5000.0,0.00011893,2]
[421776658,1778139487000,-5000.0,0.00011893,2]
[421776661,1778139489000,-5000.0,0.00011893,2]
[421776662,1778139490000,-5000.0,0.00011893,2]
[421776664,1778139491000,-5000.0,0.00011893,2]
[421776663,1778139491000,-5000.0,0.00011893,2]
[421776665,1778139491000,-5000.0,0.00011893,2]
[421776666,1778139493000,-5000.0,0.00011893,2]
[421776667,1778139494000,-5000.0,0.00011893,2]
[421776669,1778139502000,-4044.0,0.00011793,2]
[421776673,1778139517000,-9.82407111,0.00011793,2]
[421776672,1778139517000,-956.0,0.00011793,2]
[421776671,1778139517000,-2080.17592889,0.00011755,2]
[421776674,1778139540000,-250.0,0.00011793,2]
[421776675,1778139580000,2562.0,0.00011733,2]
[421776676,1778139856000,-392.7,0.00011046,2]
[421776677,1778139949000,-3813.74,0.00011087,2]
[421776679,1778139950000,-1149.68,0.00011013,2]
[421776680,1778139950000,-288.88,0.00011176,2]
[421776683,1778139950000,-157.963873,0.00011633,2]
[421776678,1778139950000,10000.0,0.00030137,120]
[421776681,1778139950000,-763.0,0.00011234,2]